[Event "Memorial Ukrainian Chess Warriors 2024"]
[Site "Lviv"]
[Date "2024.03.15"]
[Round "4.11"]
[White "Mikhaletz, Lubomir"]
[Black "Karpinets, Andrian"]
[Result "1-0"]
[ECO "D02"]
[WhiteElo "2278"]
[BlackElo "1681"]
[Annotator "TA"]
[PlyCount "91"]
[EventDate "2024.03.06"]
[EventType "swiss"]
[EventCountry "UKR"]
[SourceTitle "playchess.com"]
[Source "ChessBase"]
[SourceQuality "1"]
[TimeControl "600+5"]

{[%evp 21,91,-2,15,19,31,45,57,60,54,57,39,33,39,35,47,43,40,3,0,6,6,8,5,11,8,0,27,39,64,62,71,78,83,28,34,1,14,14,106,81,91,109,104,104,191,102,202,13,10,0,120,108,123,118,164,148,513,493,518,510,700,630,924,663,1253,1292,1428,1425,1299,1262,29989,29990]} 1. d4 {[%emt 0:00:01]} d5 {[%emt 0:00:02]} 2. Nf3 {[%emt 0:00:01]} e6 {[%emt 0:00:10]} 3. c4 {[%emt 0:00:12]} Nf6 {[%emt 0:00:02]} 4. cxd5 {[%emt 0:00:06]} exd5 {[%emt 0:00:04]} 5. Bg5 {[%emt 0:00:04]} Be7 {[%emt 0:00:02]} 6. Nc3 {[%emt 0:00:02]} c6 {[%emt 0:00:07]} 7. Qc2 {[%emt 0:00:03]} O-O {[%emt 0:00:06]} 8. e3 {[%emt 0:00:07]} h6 {[%emt 0:00:07]} 9. Bxf6 {[%emt 0:00:07]} Bxf6 {[%emt 0:00:01]} 10. Bd3 {[%emt 0:00:48]} Re8 {[%emt 0:00:01]} 11. O-O {[%emt 0:00:09]} Nd7 {[%emt 0:00:02]} 12. b4 {[%emt 0:00:07]} Be7 {[%emt 0:00:19]} 13. b5 {[%emt 0:00:47]} Nf6 {[%emt 0:00:38]} 14. bxc6 {[%emt 0:00:08] Weiß steht etwas besser.} bxc6 {[%emt 0:00:04]} 15. Ne5 {[%emt 0:00:05]} c5 {[%emt 0:00:14]} 16. Nc6 {[%emt 0:00:50] Ein dynamisches Springerpaar.} Qc7 {[%emt 0:00:27]} 17. Nxe7+ {[%emt 0:00:06]} Qxe7 {[%emt 0:00:07]} 18. dxc5 {[%emt 0:00:03]} Qxc5 {[%emt 0:00:05]} 19. Ne2 {[%emt 0:01:14]} Qxc2 {[%emt 0:00:04]} 20. Bxc2 Ba6 21. Rfe1 {[%emt 0:00:03]} Bxe2 {[%emt 0:00:20]} 22. Rxe2 {[%emt 0:00:01]} d4 {[%emt 0:00:01]} 23. e4 {[%emt 0:00:26]} Rac8 {[%emt 0:00:13]} 24. Rd1 {[%emt 0:00:13][%cal Of2f3]} Red8 {[%emt 0:01:59][%cal Od4d3] Und jetzt ...d3! wäre schön.} 25. f3 {[%emt 0:00:26]} Rc3 {[%emt 0:00:32]} 26. Red2 {[%emt 0:00:20][%cal Oc2b3]} Nh5 {[%emt 0:00:18]} 27. Kf2 {[%emt 0:01:40]} ({Vorzuziehen ist} 27. Kf1 $16) 27... Nf4 $11 {[%emt 0:00:12]} 28. g3 {[%emt 0:00:23]} Ne6 {[%emt 0:00:10]} 29. Bb3 {[%emt 0:00:16]} d3 {[%emt 0:02:56]} (29... Kf8 $11) 30. Ke3 $16 {[%emt 0:00:41]} Nc5 {[%emt 0:01:43]} 31. Bd5 {[%emt 0:00:07]} Ra3 {[%emt 0:00:07]} 32. Rc1 $36 {[%emt 0:00:11][%mdl 2048] Schwarz muss aufpassen.} Na6 {[%emt 0:00:48]} (32... Ra5 $16 {ist wohl besser.}) 33. Rc4 {[%emt 0:01:09]} (33. Rxd3 $18 Rxd3+ 34. Kxd3) 33... Rb8 {[%emt 0:00:27]} (33... Kf8 $16) 34. Kd4 $2 {[%emt 0:00:47]} (34. Rxd3 $18 Rxa2 35. Rdc3 Rxh2 36. Rc8+ Rxc8 37. Rxc8+ Kh7 38. Bxf7) 34... Nb4 $11 {[%emt 0:00:09]} 35. Rc7 {[%emt 0:01:05]} Nc2+ {[%emt 0:00:07]} (35... Rd8 $11) 36. Ke5 $16 {[%emt 0:00:04]} Rf8 {[%emt 0:00:10]} 37. Bb3 {[%emt 0:00:06] Weiß steht aktiver.} Nb4 {[%emt 0:00:08] [#]} (37... Ra5+ $16 {war angesagt.} 38. Kf4 h5) 38. Kd4 $1 $18 {[%emt 0:00:08]} Na6 $2 {[%emt 0:00:04][%mdl 8192] Führt Schwarz ins Verderben.} (38... g6 $16 39. f4 a5) 39. Rxa7 {[%emt 0:00:04]} Rd8+ {[%emt 0:00:01]} 40. Ke3 {[%emt 0:00:01]} Rd6 {[%emt 0:00:09]} 41. Bxf7+ {[%emt 0:00:04]} ({Schwächer ist} 41. Rxf7 Rxb3 42. axb3 Kxf7 43. Rxd3 Rc6 $11) 41... Kh7 {[%emt 0:00:04]} 42. Bc4 {[%emt 0:00:02]} Nb4 {[%emt 0:00:02]} 43. Rxa3 {[%emt 0:00:03]} Nc2+ {[%emt 0:00:01] [#]} 44. Rxc2 $1 {[%emt 0:00:04]} dxc2 {[%emt 0:00:01]} 45. Rc3 {[%emt 0:00:01]} Rd3+ {[%emt 0:00:13]} 46. Kxd3 {[%emt 0:00:02] Gewichteter Fehlerwert: Weiß=0.30/Schwarz=0.77.  Verlustzug:     	---       	Schwarz=1     Gewinn verpasst:   	Weiß=1     	---        Fehler:       	Weiß=2     	Schwarz=5     Ungenau:       	Weiß=2     	Schwarz=3     OK:         	Weiß=13    	Schwarz=7     Bester:       	Weiß=3     	Schwarz=3} 1-0

[Event "Memorial Ukrainian Chess Warriors 2024"]
[Site "Lviv"]
[Date "2024.03.15"]
[Round "4.12"]
[White "Shala, Maksym"]
[Black "Alexikov, Alexander"]
[Result "0-1"]
[ECO "B90"]
[WhiteElo "1807"]
[BlackElo "2183"]
[Annotator "RC"]
[PlyCount "82"]
[EventDate "2024.03.06"]
[EventType "swiss"]
[EventCountry "UKR"]
[SourceTitle "playchess.com"]
[Source "ChessBase"]
[SourceQuality "1"]
[TimeControl "600+5"]

1. e4 c5 2. Nf3 d6 3. d4 Nf6 4. Nc3 cxd4 5. Nxd4 a6 6. Bd3 Nc6 7. Be3 Ng4 8. Nxc6 bxc6 9. Bg5 Qb6 10. O-O Qxb2 11. Qd2 h6 12. Bh4 g5 13. Bg3 Bg7 14. Na4 Qa3 15. Nb6 Bxa1 16. Nxa8 Bc3 17. Qe2 h5 18. Nb6 Be6 19. Nc4 Qc5 20. h4 Bf6 21. e5 gxh4 22. Bf4 dxe5 23. Be3 Nxe3 24. Nxe3 h3 25. Nf5 hxg2 26. Rb1 e4 27. Rb8+ Kd7 28. Rb7+ Kd8 29. Rb8+ Kc7 30. Rxh8 exd3 31. Qxd3 Bxh8 32. Qg3+ Kb7 33. Ne3 Bd4 34. Qg8 Bxe3 35. fxe3 Qxe3+ 36. Kxg2 Qh3+ 37. Kf2 Qf5+ 38. Ke3 Qe5+ 39. Kf2 Qf4+ 40. Ke1 Qe3+ 41. Kf1 Bh3+ 0-1

[Event "Memorial Ukrainian Chess Warriors 2024"]
[Site "Lviv"]
[Date "2024.03.15"]
[Round "4.13"]
[White "Petursson, Margeir"]
[Black "Sobol, Matvii"]
[Result "1-0"]
[ECO "D38"]
[WhiteElo "2344"]
[BlackElo "2021"]
[Annotator "TA"]
[PlyCount "101"]
[EventDate "2024.03.06"]
[EventType "swiss"]
[EventCountry "UKR"]
[SourceTitle "playchess.com"]
[Source "ChessBase"]
[SourceQuality "1"]
[TimeControl "600+5"]

{[%evp 13,101,26,33,25,40,0,36,50,116,118,112,101,93,125,116,116,121,113,107,112,152,145,148,151,252,127,144,120,106,104,141,140,212,220,219,223,232,254,233,161,184,114,206,220,216,250,225,251,341,344,683,676,717,809,1379,1171,1170,1168,1157,1145,1080,872,5306,1107,1379,726,1075,1004,933,898,6202,6202,5357,1608,3927,3529,6179,6111,6079,1060,5910,2596,5501,5501,6202,6195,29973,6091,6195,5917]} 1. d4 {[%emt 0:00:01]} Nf6 {[%emt 0:00:02]} 2. c4 {[%emt 0:00:02]} e6 {[%emt 0:00:00]} 3. Nc3 {[%emt 0:00:04]} d5 {[%emt 0:00:01]} 4. Nf3 {[%emt 0:00:03]} Bb4 {[%emt 0:00:08]} 5. g3 {[%emt 0:00:09]} O-O {[%emt 0:00:06]} 6. Bg2 {[%emt 0:00:02]} b6 {[%emt 0:00:50]} 7. O-O {[%emt 0:00:03]} Bb7 {[%emt 0:00:00]} 8. Ne5 {[%emt 0:00:12]} c6 {[%emt 0:00:06]} 9. a3 {[%emt 0:00:17]} Be7 {[%emt 0:00:08]} 10. e4 {[%emt 0:00:22] Weiß steht etwas besser.} Nbd7 {[%emt 0:00:05] [#]} (10... dxe4 $14 11. Nxe4 Nxe4 12. Bxe4 Qc7) 11. Nxc6 $1 $16 {[%emt 0:01:10][%mdl 512] Weiß hat aktiveres Spiel.} Bxc6 {[%emt 0:00:18]} 12. exd5 {[%emt 0:00:02]} exd5 {[%emt 0:00:28]} 13. cxd5 {[%emt 0:00:02]} Bb7 {[%emt 0:00:33] [#]} 14. d6 $1 {[%emt 0:00:02][%cal Od6e7][%mdl 512]} Bxg2 {[%emt 0:00:04]} 15. dxe7 {[%emt 0:00:02]} Qxe7 {[%emt 0:00:03]} 16. Kxg2 {[%emt 0:00:01]} Rad8 {[%emt 0:00:08]} 17. Qf3 {[%emt 0:00:15]} h6 {[%emt 0:00:29]} 18. Bf4 {[%emt 0:00:17]} Rfe8 {[%emt 0:00:04]} (18... Qe6 $16 19. Bc7 Rc8) 19. h4 {[%emt 0:00:18]} (19. Bc7 $1 $18) 19... Nf8 {[%emt 0:00:20][%cal Of8e6]} 20. Be5 {[%emt 0:00:14]} N6h7 {[%emt 0:01:04]} 21. Rad1 {[%emt 0:00:46]} Ne6 {[%emt 0:00:22]} 22. Rfe1 {[%emt 0:01:15] d5 ist eine echte Drohung.} f6 {[%emt 0:02:10]} (22... Qd7 $16 23. d5 Nef8) 23. d5 $18 {[%emt 0:00:24][%cal Bd4d5,Bd5d6][%mdl 32]} fxe5 {[%emt 0:00:12]} 24. Rxe5 {[%emt 0:00:39]} (24. dxe6 Qxe6 25. Rxd8 Rxd8) 24... Nf4+ {[%emt 0:01:30]} (24... Qf6 $2 25. Qxf6 (25. Rxe6 Rxe6 26. dxe6 Rxd1 $18) 25... Nxf6 26. dxe6 $18 (26. Rxe6 Rf8 $18)) 25. gxf4 {[%emt 0:00:03]} Qxh4 {[%emt 0:00:01]} 26. Qg3 {[%emt 0:00:32]} Qf6 {[%emt 0:00:35] Schwarz ist schwach auf den weissen Feldern} 27. Rde1 {[%emt 0:00:04]} ({Besser ist} 27. d6 $1 $18 {Und jetzt Nd5 wäre schön.} Kh8 28. Ne4) 27... Qf7 {[%emt 0:00:25] [#]} (27... Rf8 $16) 28. d6 $1 {[%emt 0:00:58][%mdl 512]} Nf6 {[%emt 0:00:22] [#]} 29. Re7 $1 {[%emt 0:00:33]} Rxe7 {[%emt 0:00:29]} 30. Rxe7 {[%emt 0:00:15]} Qf8 {[%emt 0:00:05] [#]} 31. f5 $1 {[%emt 0:00:39][%cal Bf4f5,Bf5f6][%mdl 32]} (31. Rxa7 Rxd6 32. Qf3 Kh7 $11) 31... Ne8 $2 {[%emt 0:00:44]} (31... Kh8 32. Qe5 (32. Rxa7 Rxd6 33. Kf1 Rd7 $16) 32... Qg8) 32. Nd5 {[%emt 0:00:41][%cal Bc3d5,Bd5c7,Bc7e6][%mdl 32] Droht d7 und aus.} (32. Rxa7 Qxf5 (32... Nxd6 33. Qg6 $16) 33. Rb7 Qf6 $16) 32... Nxd6 {[%emt 0:00:37]} 33. f6 {[%emt 0:00:11]} (33. Rxa7 Nc8 (33... Nxf5 34. Qe5 $11) 34. Ra8 Rxd5 $17) 33... Nf7 {[%emt 0:00:03]} 34. Nc7 {[%emt 0:00:21]} Rd6 {[%emt 0:00:14]} 35. Re8 {[%emt 0:00:09][%csl Gf6][%cal Rg3g7]} Rxf6 {[%emt 0:00:01]} 36. Rxf8+ {[%emt 0:00:16]} Kxf8 {[%emt 0:00:01]} 37. Qe3 {[%emt 0:00:14][%csl Gc7][%cal Re3e8]} Kg8 {[%emt 0:00:04]} 38. Qe8+ {[%emt 0:00:10]} Kh7 {[%emt 0:00:02]} 39. Ne6 {[%emt 0:00:10] jetzt Nf8+ und aus.} h5 {[%emt 0:00:17]} 40. Nf8+ {[%emt 0:00:16]} Kh6 {[%emt 0:00:02]} 41. Nd7 {[%emt 0:00:09]} Rg6+ {[%emt 0:00:03]} 42. Kf1 {[%emt 0:00:05]} Nd6 {[%emt 0:00:05]} 43. Qh8+ {[%emt 0:00:06]} Kg5 {[%emt 0:00:02]} 44. Ne5 {[%emt 0:00:12]} Re6 {[%emt 0:00:13]} 45. Qxg7+ Kf5 46. Nf7 {[%emt 0:00:24]} Ne4 {[%emt 0:00:03]} 47. Nh6+ {[%emt 0:00:11]} Kf4 {[%emt 0:00:06]} 48. Qf7+ {[%emt 0:00:05]} Rf6 {[%emt 0:00:04]} 49. Qxh5 {[%emt 0:00:06]} Rf8 {[%emt 0:00:12]} 50. Qg4+ {[%emt 0:00:10]} (50. Qh4+ $142 Ke5 51. Qe7+ Kd4 52. Qxf8 Nc5 53. Qa8 Kc4 54. Qxa7 (54. Qg8+ Kd4 $18) 54... Kd5 55. Qxb6) 50... Ke5 {[%emt 0:00:02]} 51. Qg7+ {[%emt 0:00:01] Gewichteter Fehlerwert: Weiß=0.19 (sehr präzise) /Schwarz=0.55.  Fehler:       	Weiß=2     	Schwarz=5     Ungenau:       	Weiß=2     	Schwarz=4     OK:         	Weiß=9     	Schwarz=6     Bester:       	Weiß=2     	Schwarz=1     Stark:        	Weiß=2     	---        Brilliant:      	Weiß=2     	---} 1-0

[Event "Memorial Ukrainian Chess Warriors 2024"]
[Site "Lviv"]
[Date "2024.03.15"]
[Round "4.14"]
[White "Shton, Roman"]
[Black "Starozhilov, Leonid"]
[Result "0-1"]
[ECO "A40"]
[WhiteElo "2002"]
[BlackElo "2285"]
[Annotator "TA"]
[PlyCount "52"]
[EventDate "2024.03.06"]
[EventType "swiss"]
[EventCountry "UKR"]
[SourceTitle "playchess.com"]
[Source "ChessBase"]
[SourceQuality "1"]
[TimeControl "600+5"]

{[%evp 10,52,22,30,20,22,31,35,37,28,23,20,34,0,14,15,16,-46,0,0,0,0,46,-174,-170,-177,-161,-169,-176,-172,-168,-174,-172,-183,-146,-127,-137,-433,-428,-434,-436,-528,-462,-450,-443]} 1. d4 {[%emt 0:00:03]} g6 {[%emt 0:00:01]} 2. Nf3 {[%emt 0:00:07]} Bg7 {[%emt 0:00:01]} 3. e4 {[%emt 0:00:02]} d6 {[%emt 0:00:01]} 4. Bc4 {[%emt 0:00:01]} Nf6 {[%emt 0:00:03]} 5. Qe2 {[%emt 0:00:02]} Nc6 {[%emt 0:00:00]} 6. c3 {[%emt 0:00:01]} e5 {[%emt 0:00:03]} 7. dxe5 {[%emt 0:00:33]} Nxe5 {[%emt 0:00:08]} 8. Nxe5 {[%emt 0:00:10]} dxe5 {[%emt 0:00:01] Weiß steht etwas besser.} 9. O-O {[%emt 0:00:06]} O-O {[%emt 0:00:13]} 10. Rd1 {[%emt 0:00:07]} Qe7 {[%emt 0:00:07]} 11. f3 {[%emt 0:00:15]} Nh5 {[%emt 0:00:11]} 12. Na3 {[%emt 0:01:21]} c6 {[%emt 0:00:30]} 13. Qd3 {[%emt 0:00:14]} (13. Nc2 $11) 13... Nf4 {[%emt 0:02:33]} (13... b5 $15 14. Bb3 a5) 14. Qd6 $11 {[%emt 0:02:33]} (14. Qd2 {vereinfacht} a5 15. Qd6 Qxd6 16. Rxd6 Re8 17. Be3) 14... Qg5 {[%emt 0:01:06][%csl Gf4][%cal Rg5g2] [#]} 15. g3 {[%emt 0:00:19]} Bh3 {[%emt 0:00:43] Gegen Bf1 gerichtet.} (15... Nh3+ $11 16. Kg2 Qh5) 16. Bxf4 $2 {[%emt 0:00:18]} (16. Qc5 $1 $14 {behält die Oberhand.} Qh5 17. Qf2 (17. gxf4 $2 {geht unter.} Qxf3 18. Rd2 Qg4+ 19. Kh1 b5 $19) (17. Bxf4 b6 $11)) 16... exf4 $19 {[%emt 0:00:02]} 17. Qxf4 {[%emt 0:00:03]} Qc5+ {[%emt 0:00:58]} 18. Kh1 {[%emt 0:00:01]} Qf2 {[%emt 0:00:02]} 19. Bf1 {[%emt 0:02:17] Wehrt Bg2+ ab} Bxf1 $40 {[%emt 0:01:06][%mdl 128] Weiss ist in Schwierigkeiten.} (19... Qxb2 20. Bxh3 Qxa3 21. Rd3 $15) 20. Rxf1 {[%emt 0:00:03]} Qxb2 {[%emt 0:00:02]} 21. Nc4 {[%emt 0:00:30]} Qxc3 {[%emt 0:01:07]} 22. Rac1 {[%emt 0:00:01]} Qb4 {[%emt 0:00:19]} 23. Nd6 $2 {[%emt 0:00:17][%mdl 8192] [#]} (23. e5 $17 {war nötig.}) 23... g5 $1 {[%emt 0:00:25][%mdl 512] Schwarz steht klar auf Gewinn.} 24. Qxg5 {[%emt 0:00:42]} Qxd6 {[%emt 0:00:02]} 25. f4 {[%emt 0:00:11]} Qg6 {[%emt 0:00:08]} 26. Qxg6 {[%emt 0:00:07]} hxg6 {[%emt 0:00:02] Gewichteter Fehlerwert: Weiß=0.43/Schwarz=0.16 (sehr präzise) .  Verlustzug:     	Weiß=2     	---        Fehler:       	Weiß=1     	Schwarz=2     OK:         	Weiß=9     	Schwarz=8     Bester:       	Weiß=1     	Schwarz=1     Brilliant:      	---       	Schwarz=1} 0-1

[Event "Memorial Ukrainian Chess Warriors 2024"]
[Site "Lviv"]
[Date "2024.03.15"]
[Round "4.15"]
[White "Podolskyi, Mykhailo"]
[Black "Yushko, Olga"]
[Result "1-0"]
[ECO "D63"]
[WhiteElo "2331"]
[BlackElo "1940"]
[Annotator "TA"]
[PlyCount "87"]
[EventDate "2024.03.06"]
[EventType "swiss"]
[EventCountry "UKR"]
[SourceTitle "playchess.com"]
[Source "ChessBase"]
[SourceQuality "1"]
[TimeControl "600+5"]

{[%evp 23,87,22,21,17,15,15,23,24,72,63,74,53,141,55,55,45,51,49,122,126,113,122,114,55,64,57,68,53,61,65,64,55,66,43,64,49,38,45,44,41,46,46,63,0,78,33,29,0,72,42,93,85,88,0,78,58,156,99,96,123,279,260,253,235,29991,29992]} 1. d4 {[%emt 0:00:02]} e6 {[%emt 0:00:02]} 2. c4 {[%emt 0:00:03]} Nf6 {[%emt 0:00:03]} 3. Nf3 {[%emt 0:00:01]} d5 {[%emt 0:00:02]} 4. Nc3 {[%emt 0:00:05]} Be7 {[%emt 0:00:12]} 5. Bg5 {[%emt 0:00:05]} O-O {[%emt 0:00:07]} 6. e3 {[%emt 0:00:02]} Nbd7 {[%emt 0:00:05]} 7. Rc1 {[%emt 0:00:17]} b6 {[%emt 0:01:00]} 8. cxd5 {[%emt 0:00:02]} exd5 {[%emt 0:00:02]} 9. Bd3 {[%emt 0:00:23]} Bb7 {[%emt 0:00:23]} 10. O-O {[%emt 0:00:06]} c5 {[%emt 0:00:06]} 11. Qe2 {[%emt 0:00:32]} Ne4 {[%emt 0:00:42]} 12. Bxe7 {[%emt 0:00:49]} Qxe7 {[%emt 0:00:02]} 13. dxc5 {[%emt 0:00:03]} Ndxc5 {[%emt 0:00:04]} 14. Rfd1 {[%emt 0:00:34]} a5 {[%emt 0:01:05]} 15. Nd4 {[%emt 0:00:57] Weiß hat minimalen Vorteil.} f5 {[%emt 0:02:23]} (15... Rac8 $11) 16. Bb5 {[%emt 0:00:47]} Rac8 {[%emt 0:01:12] Verhindert Nc6.} 17. h3 {[%emt 0:01:01]} Qg5 {[%emt 0:01:12] [#]} (17... Qf6 $14) 18. Nf3 {[%emt 0:03:06]} ({Günstiger ist} 18. Nxd5 $1 $16 {Droht Nf3 und aus.} Bxd5 19. Nf3) 18... Nxc3 $1 $14 {[%emt 0:00:19]} 19. Rxc3 {[%emt 0:00:02]} Qf6 {[%emt 0:00:05]} 20. Nd4 {[%emt 0:00:08]} Ne4 {[%emt 0:00:30]} (20... Rc7 $14) 21. Rxc8 $16 {[%emt 0:00:02]} Rxc8 {[%emt 0:00:12]} 22. Bd7 {[%emt 0:01:10]} Rc4 {[%emt 0:00:22]} 23. Qh5 {[%emt 0:01:11]} ({Viel schlechter ist} 23. Nxf5 $6 Rc7 24. Qg4 Nxf2 (24... Rxd7 $2 {zu gefräßig.} 25. Nh6+ Qxh6 26. Qxd7 $18) 25. Kxf2 Rxd7 $11) (23. Qf3 $16) 23... g6 $14 {[%emt 0:00:30]} 24. Qh6 {[%emt 0:00:05] Schwarz muss nun Be6+ beachten.} Bc8 {[%emt 0:00:38]} 25. Bb5 {[%emt 0:00:18]} Rc5 {[%emt 0:00:05]} 26. Qf4 {[%emt 0:00:10]} Qd6 {[%emt 0:00:12]} 27. Qf3 {[%emt 0:00:08]} Qe5 {[%emt 0:00:23]} 28. Bd3 {[%emt 0:00:09]} Bb7 {[%emt 0:00:02]} 29. Bxe4 {[%emt 0:00:03]} dxe4 {[%emt 0:00:04]} 30. Qe2 {[%emt 0:00:01]} Bd5 {[%emt 0:00:15]} 31. b3 {[%emt 0:00:09]} Bf7 {[%emt 0:00:09]} 32. Qa6 {[%emt 0:00:04]} Qd6 {[%emt 0:00:05]} 33. Qe2 {[%emt 0:00:07]} (33. h4 $14) 33... Rd5 {[%emt 0:00:02]} (33... Qe5 $11 {bleibt in der Remisbreite.}) 34. Rc1 {[%emt 0:00:02]} Rc5 {[%emt 0:00:02]} 35. Rd1 {[%emt 0:00:01][%cal Od4f5]} Rd5 {[%emt 0:00:00]} (35... Qe5 $11 {hält das Gleichgewicht.}) 36. g3 $16 {[%emt 0:00:08]} Be8 {[%emt 0:00:14]} (36... h5 $14) 37. Qc4 {[%emt 0:00:08][%cal Od4f5] [#] Zielt auf Nxf5! ab.} Qc5 {[%emt 0:00:08]} 38. Qe2 {[%emt 0:00:01]} Qd6 $1 {[%emt 0:00:01][%cal Oe8b5]} 39. Kg2 $36 {[%emt 0:00:02][%mdl 2048] Weiss kämpft um Vorteil.} a4 {[%emt 0:00:02]} (39... b5 $14) 40. bxa4 {[%emt 0:00:08]} (40. Qc4 $142 {[%cal Od4f5] Und jetzt Nxf5! wäre schön.} Bf7 41. bxa4 (41. Qxa4 Ra5 $16)) 40... Bxa4 {[%emt 0:00:02]} 41. Rb1 {[%emt 0:00:02][%cal Bd1b1,Bb1b5,Bb5b8][%mdl 32]} b5 {[%emt 0:00:02] Wehrt Qc4 ab} 42. Nxb5 $18 {[%emt 0:00:13]} Bxb5 {[%emt 0:00:07]} 43. Rxb5 {[%emt 0:00:01]} Qa6 $2 {[%emt 0:00:07]} (43... Rxb5 $18 44. Qxb5 h5) 44. Rb8+ {[%emt 0:00:04] Gewichteter Fehlerwert: Weiß=0.17 (sehr präzise) /Schwarz=0.45.  Fehler:       	Weiß=4     	Schwarz=9     Ungenau:       	Weiß=2     	---        OK:         	Weiß=9     	Schwarz=6     Bester:       	Weiß=3     	Schwarz=1     Stark:        	---       	Schwarz=2} 1-0

[Event "Memorial Ukrainian Chess Warriors 2024"]
[Site "Lviv"]
[Date "2024.03.15"]
[Round "4.16"]
[White "Masnyak, Yuriy"]
[Black "Sydoryka, Vladyslav"]
[Result "0-1"]
[ECO "B12"]
[WhiteElo "1785"]
[BlackElo "2310"]
[Annotator "TA"]
[PlyCount "96"]
[EventDate "2024.03.06"]
[EventType "swiss"]
[EventCountry "UKR"]
[SourceTitle "playchess.com"]
[Source "ChessBase"]
[SourceQuality "1"]
[TimeControl "600+5"]

{[%evp 17,96,11,13,4,3,0,1,0,0,0,22,0,11,0,16,-11,0,0,0,0,0,-13,14,0,21,-25,31,35,32,0,42,38,41,41,54,47,48,-116,-135,-129,-120,-230,-236,-237,-217,-428,-437,-511,-521,-550,-564,-564,-552,-570,-565,-608,-491,-517,-457,-588,-528,-480,-548,-529,-520,-521,-516,-566,-570,-564,-611,-752,-735,-672,-573,-601,-599,-615,-593,-594,-565]} 1. e4 {[%emt 0:00:01]} c6 {[%emt 0:00:00][%cal Bc7c6,Bc6c5][%mdl 32]} 2. d4 {[%emt 0:00:01]} d5 {[%emt 0:00:01]} 3. e5 {[%emt 0:00:01]} c5 {[%emt 0:00:01]} 4. c3 {[%emt 0:00:01]} Nc6 {[%emt 0:00:01]} 5. Be2 {[%emt 0:00:01]} Bf5 {[%emt 0:00:04]} 6. Nf3 {[%emt 0:00:01]} e6 {[%emt 0:00:01]} 7. O-O {[%emt 0:00:02]} cxd4 {[%emt 0:00:05]} 8. cxd4 {[%emt 0:00:02]} Nge7 {[%emt 0:00:05][%cal Bg8e7,Be7c8,Bc8b6][%mdl 32]} 9. Nc3 {[%emt 0:00:24]} Nc8 {[%emt 0:00:05]} 10. a3 {[%emt 0:00:14]} Nb6 {[%emt 0:00:05]} 11. b3 {[%emt 0:00:02]} Be7 {[%emt 0:00:05]} 12. Bb2 {[%emt 0:00:05] The position is equal.} O-O {[%emt 0:00:03]} 13. Qd2 {[%emt 0:00:22]} Qd7 {[%emt 0:00:07]} 14. Rac1 {[%emt 0:00:03]} Rfc8 {[%emt 0:00:01]} 15. Ne1 {[%emt 0:00:38]} Bg6 {[%emt 0:00:30]} 16. h3 {[%emt 0:00:27]} a6 {[%emt 0:00:13]} 17. Kh1 {[%emt 0:00:11]} Rc7 {[%emt 0:02:51]} 18. f4 {[%emt 0:00:11]} Rac8 {[%emt 0:00:23]} 19. g4 {[%emt 0:01:15]} Be4+ {[%emt 0:00:48]} 20. Ng2 {[%emt 0:02:05]} Qd8 {[%emt 0:01:52]} 21. Kh2 {[%emt 0:01:11]} (21. Qe3 $142) 21... Bxg2 {[%emt 0:00:36]} (21... Na5 $11 22. Bd1 (22. Nxe4 $2 Nxb3 23. Qd3 Nxc1 $19) 22... Nac4 23. bxc4 Nxc4) 22. Kxg2 $14 {[%emt 0:00:02]} Na5 {[%emt 0:00:00]} 23. Qd1 {[%emt 0:00:42]} Qf8 {[%emt 0:00:45]} (23... Bxa3 24. Bxa3 Rxc3 25. Rxc3 Rxc3 26. Bb4 $18) (23... Nd7 $5) 24. Nb1 {[%emt 0:00:34]} Rxc1 {[%emt 0:00:16]} 25. Bxc1 {[%emt 0:00:01]} Qd8 {[%emt 0:00:40]} 26. Bd3 {[%emt 0:00:07]} Nc6 {[%emt 0:00:23]} 27. f5 $2 {[%emt 0:01:01]} (27. Bb2 $14) 27... Nxd4 $17 {[%emt 0:02:07] White is now going downhill.} 28. f6 {[%emt 0:00:02]} gxf6 {[%emt 0:00:03]} 29. Bxh7+ {[%emt 0:00:02]} Kxh7 $19 {[%emt 0:00:01]} 30. Qxd4 {[%emt 0:00:02]} Nd7 {[%emt 0:00:10]} 31. g5 $2 {[%emt 0:00:31]} (31. exf6 {keeps fighting.} Bxf6 32. Qf4) 31... f5 {[%emt 0:00:00] Black is clearly winning.} (31... fxg5 32. Rxf7+ Kg8 (32... Kg6 33. Qd3+ Kxf7 34. Qh7+ Ke8 35. Qh5+ Kf8 36. Qh8+ Kf7 37. Qh7+ Ke8 38. Qh5+ Kf8 39. Qh8+ Kf7 40. Qh7+ $11) 33. Qd3 $19) (31... fxe5 32. Qh4+ Kg8 33. Rxf7 $19) (31... Nxe5 32. Qh4+ Kg8 33. gxf6 Rc2+ (33... Bxf6 34. Rxf6 Ng6 35. Qg5 $16) (33... Ng6 $2 34. Qg5 $19) 34. Bd2 $19) (31... Rc2+ 32. Kh1 Nxe5 33. Bf4 $19) 32. Qh4+ {[%emt 0:01:17]} Kg8 {[%emt 0:00:01]} 33. Qg3 {[%emt 0:00:23]} Rc2+ {[%emt 0:00:11]} 34. Kh1 {[%emt 0:00:02] White is weak on the light squares} Qc7 {[%emt 0:00:14]} 35. Bf4 Nf8 36. g6 {[%emt 0:00:44]} fxg6 {[%emt 0:00:08]} 37. Bh6 {[%emt 0:00:06]} Kf7 {[%emt 0:00:07] And now ...Nd7 would win.} 38. Rg1 {[%emt 0:00:06]} g5 {[%emt 0:00:05]} 39. Bxg5 {[%emt 0:00:06]} Bxg5 {[%emt 0:00:02]} 40. Qxg5 {[%emt 0:00:03] [#] Strongly threatening Qh5+.} Qxe5 {[%emt 0:00:05]} 41. Nd2 {[%emt 0:00:07]} Qc3 {[%cal Rc3h3] Inhibits Nf3.} 42. Qh5+ {[%emt 0:00:10]} Ke7 {[%emt 0:00:10]} 43. Qg5+ {[%emt 0:00:01]} Ke8 {[%emt 0:00:07][%cal Rc3h3] [#]} 44. Rg2 {[%emt 0:00:03]} Qxh3+ {[%emt 0:00:03]} 45. Kg1 {[%emt 0:00:02]} Qc3 {[%emt 0:00:08]} 46. Qf4 {[%emt 0:00:11]} Rc1+ {[%emt 0:00:06]} 47. Kh2 {[%emt 0:00:01]} Qc7 {[%emt 0:00:01]} 48. Qxc7 {[%emt 0:00:03]} Rxc7 {[%emt 0:00:00] Weighted Error Value: White=0.40/Black=0.18 (very precise) .  Mistake:       	White=4     	Black=1      Inaccurate:     	White=2     	Black=2      OK:         	White=6     	Black=12     Best:        	White=2     	Black=3} 0-1